{"text_format":"1","workbook":"xlsx","n_sheets":9,"sheets":["Paste Transpose","Find & Replace","TRANSPOSE","INDIRECT ADDRESS","Table3","Power Query","VBA","Two Columns","Swap Columns & Rows in chart"],"not_rendered":{"charts":1,"images":0,"macros":1,"external_links":0,"defined_names":1,"comments":0,"pivot_tables":0},"unopened":[],"bounds":{"document_bytes":16777216,"sheet_cells":100000,"rows_first":2000,"rows_last":500,"rows_between":2000,"halvings":0,"cell_chars":16384,"cell_head_chars":4096},"cells_cut":0,"cells_raw":0,"read":"whole","date_system":"1900"}

{"sheet":"Paste Transpose","index":0,"n_rows":11,"n_cols":6,"rows_kept":11,"cut":false,"hidden":false,"merged":[[1,1,1,5]]}
[]
[null,"Use of Paste Transpose Feature"]
[]
[null,"Salesman","Net Sales"]
[null,"Wilham",2600]
[null,"Simon",11500]
[null,"Frank",5500]
[null,"Nathan",7000]
[]
[null,"Salesman","Wilham","Simon","Frank","Nathan"]
[null,"Net Sales",2600,11500,5500,7000]

{"sheet":"Find & Replace","index":1,"n_rows":11,"n_cols":6,"rows_kept":11,"cut":false,"hidden":false,"merged":[[1,1,1,5]]}
[]
[null,"Use of Find & Replace Feature"]
[]
[null,"Salesman","Net Sales"]
[null,"Wilham",2600]
[null,"Simon",11500]
[null,"Frank",5500]
[null,"Nathan",7000]
[]
[null,{"$f":"$B$4","v":"Salesman"},{"$f":"$B$5","v":"Wilham"},{"$f":"$B$6","v":"Simon"},{"$f":"$B$7","v":"Frank"},{"$f":"$B$8","v":"Nathan"}]
[null,{"$f":"$C$4","v":"Net Sales"},{"$f":"$C$5","v":2600},{"$f":"$C$6","v":11500},{"$f":"$C$7","v":5500},{"$f":"$C$8","v":7000}]

{"sheet":"TRANSPOSE","index":2,"n_rows":11,"n_cols":6,"rows_kept":11,"cut":false,"hidden":false,"merged":[[1,1,1,5]]}
[]
[null,"Use of TRANSPOSE Function"]
[]
[null,"Salesman","Net Sales"]
[null,"Wilham",2600]
[null,"Simon",11500]
[null,"Frank",5500]
[null,"Nathan",7000]
[]
[null,{"$f":"TRANSPOSE(B4:C8)","v":"Salesman"},"Wilham","Simon","Frank","Nathan"]
[null,"Net Sales",2600,11500,5500,7000]

{"sheet":"INDIRECT ADDRESS","index":3,"n_rows":11,"n_cols":6,"rows_kept":11,"cut":false,"hidden":false,"merged":[[1,1,1,5]]}
[]
[null,"Combination of INDIRECT and ADDRESS Functions"]
[]
[null,"Salesman","Net Sales"]
[null,"Wilham",2600]
[null,"Simon",11500]
[null,"Frank",5500]
[null,"Nathan",7000]
[]
[null,{"$f":"INDIRECT(ADDRESS(COLUMN(B4)-COLUMN($B$4)+ROW($B$4), ROW(B4)-ROW($B$4)+COLUMN($B$4)))","v":"Salesman"},{"$f":"INDIRECT(ADDRESS(COLUMN(C4)-COLUMN($B$4)+ROW($B$4), ROW(C4)-ROW($B$4)+COLUMN($B$4)))","v":"Wilham"},{"$f":"INDIRECT(ADDRESS(COLUMN(D4)-COLUMN($B$4)+ROW($B$4), ROW(D4)-ROW($B$4)+COLUMN($B$4)))","v":"Simon"},{"$f":"INDIRECT(ADDRESS(COLUMN(E4)-COLUMN($B$4)+ROW($B$4), ROW(E4)-ROW($B$4)+COLUMN($B$4)))","v":"Frank"},{"$f":"INDIRECT(ADDRESS(COLUMN(F4)-COLUMN($B$4)+ROW($B$4), ROW(F4)-ROW($B$4)+COLUMN($B$4)))","v":"Nathan"}]
[null,{"$f":"INDIRECT(ADDRESS(COLUMN(B5)-COLUMN($B$4)+ROW($B$4), ROW(B5)-ROW($B$4)+COLUMN($B$4)))","v":"Net Sales"},{"$f":"INDIRECT(ADDRESS(COLUMN(C5)-COLUMN($B$4)+ROW($B$4), ROW(C5)-ROW($B$4)+COLUMN($B$4)))","v":2600},{"$f":"INDIRECT(ADDRESS(COLUMN(D5)-COLUMN($B$4)+ROW($B$4), ROW(D5)-ROW($B$4)+COLUMN($B$4)))","v":11500},{"$f":"INDIRECT(ADDRESS(COLUMN(E5)-COLUMN($B$4)+ROW($B$4), ROW(E5)-ROW($B$4)+COLUMN($B$4)))","v":5500},{"$f":"INDIRECT(ADDRESS(COLUMN(F5)-COLUMN($B$4)+ROW($B$4), ROW(F5)-ROW($B$4)+COLUMN($B$4)))","v":7000}]

{"sheet":"Table3","index":4,"n_rows":2,"n_cols":5,"rows_kept":2,"cut":false,"hidden":false,"merged":[]}
["Salesman","Wilham","Simon","Frank","Nathan"]
["Net Sales",2600,11500,5500,7000]

{"sheet":"Power Query","index":5,"n_rows":8,"n_cols":3,"rows_kept":8,"cut":false,"hidden":false,"merged":[[1,1,1,2]]}
[]
[null,"Use of Power Query Editor"]
[]
[null,"Salesman","Net Sales"]
[null,"Wilham",2600]
[null,"Simon",11500]
[null,"Frank",5500]
[null,"Nathan",7000]

{"sheet":"VBA","index":6,"n_rows":11,"n_cols":6,"rows_kept":11,"cut":false,"hidden":false,"merged":[[1,1,1,5]]}
[]
[null,"Use of Excel VBA"]
[]
[null,"Salesman","Net Sales"]
[null,"Wilham",2600]
[null,"Simon",11500]
[null,"Frank",5500]
[null,"Nathan",7000]
[]
[null,"Salesman","Wilham","Simon","Frank","Nathan"]
[null,"Net Sales",2600,11500,5500,7000]

{"sheet":"Two Columns","index":7,"n_rows":6,"n_cols":3,"rows_kept":6,"cut":false,"hidden":false,"merged":[]}
[]
[null,"Net Sales","Salesman"]
[null,2600,"Wilham"]
[null,11500,"Simon"]
[null,5500,"Frank"]
[null,7000,"Nathan"]

{"sheet":"Swap Columns & Rows in chart","index":8,"n_rows":8,"n_cols":4,"rows_kept":8,"cut":false,"hidden":false,"merged":[[1,1,1,3]]}
[]
[null,"Swapping Columns & Rows in Excel Chart"]
[]
[null,null,2020,2021]
[null,"Wilham",2600,3000]
[null,"Simon",11500,12000]
[null,"Frank",5500,5000]
[null,"Nathan",7000,6000]